fUST/lending_fUST_20240110
["ID","MTS","AMOUNT","RATE_DAILY","PERIOD"]
[311013967,1704870642691,-2057.7,0.00027397,2]
[311013969,1704870642701,-2057.7,0.00027397,2]
[311013971,1704870642710,-2057.7,0.00027397,2]
[311013973,1704870642719,-2057.7,0.00027397,2]
[311013974,1704870642728,-501.3809648,0.00027397,2]
[311013976,1704870642740,-2057.7,0.00027397,2]
[311013978,1704870642749,-2057.7,0.00027397,2]
[311013980,1704870642758,-2057.7,0.00027397,2]
[311013982,1704870642767,-2057.7,0.00027397,2]
[311013984,1704870642776,-2057.7,0.00027397,2]
[311013985,1704870642785,-2057.7,0.00027397,2]
[311013987,1704870642794,-2057.7,0.00027397,2]
[311013989,1704870642804,-2057.7,0.00027397,2]
[311013991,1704870642815,-2057.7,0.00027397,2]
[311013993,1704870642824,-2057.7,0.00027397,2]
[311013995,1704870642833,-2057.7,0.00027397,2]
[311013997,1704870642842,-2057.7,0.00027397,2]
[311013999,1704870642851,-2057.7,0.00027397,2]
[311014000,1704870642861,-2057.70317931,0.00027397,2]
[311014002,1704870642870,-500.0,0.00027397,2]
[311014004,1704870642879,-309.92921421,0.00027397,2]
[311014006,1704870642888,-500.0,0.00027397,2]
[311014008,1704870642898,-512.77237102,0.00027397,2]
[311014009,1704870642907,-500.0,0.00027397,2]
[311014011,1704870642916,-2159.22,0.00027397,2]
[311014013,1704870642926,-606.53499598,0.00027397,2]
[311014015,1704870642935,-502.73708819,0.00027397,2]
[311014017,1704870642944,-502.85008081,0.00027397,2]
[311014018,1704870642953,-500.0,0.00027397,2]
[311014020,1704870642963,-503.0485431,0.00027397,2]
[311014023,1704870642973,-500.30641269,0.00027397,2]
[311014026,1704870642983,-523.61,0.00027397,2]
[311014029,1704870642992,-503.85827066,0.00027397,2]
[311014032,1704870643002,-500.0,0.00027397,2]
[311014034,1704870643012,-500.0,0.00027397,2]
[311014037,1704870643021,-500.0,0.00027397,2]
[311014040,1704870643030,-1893.13,0.00027397,2]
[311014043,1704870643039,-501.60891421,0.00027397,2]
[311014045,1704870643048,-503.76502889,0.00027397,2]
[311014047,1704870643057,-501.81180643,0.00027397,2]
[311014049,1704870643066,-500.68671623,0.00027397,2]
[311014052,1704870643075,-177.73517949,0.00027397,2]
[311014056,1704870643084,-500.0,0.00027397,2]
[311014059,1704870643093,-1733.57,0.00027397,2]
[311014062,1704870643101,-500.0,0.00027397,2]
[311014064,1704870643111,-249.06598029,0.00027397,2]
[311014067,1704870643121,-3709.22,0.00027397,2]
[311014070,1704870643130,-500.0,0.00027397,2]
[311014073,1704870643139,-500.0,0.00027397,2]
[311014076,1704870643149,-500.0,0.00027397,2]
[311014090,1704870643236,-502.71096196,0.00027397,2]
[311014092,1704870643256,-500.0,0.00027397,2]
[311014094,1704870643265,-500.0,0.00027397,2]
[311014095,1704870643273,-536.3838065,0.00027397,2]
[311014096,1704870643282,-500.0,0.00027397,2]
[311014097,1704870643291,-500.0,0.00027397,2]
[311014098,1704870643300,-356.23431548,0.00027397,2]
[311014099,1704870643309,-1533.18,0.00027397,2]
[311014100,1704870643320,-500.0,0.00027397,2]
[311014101,1704870643329,-500.0,0.00027397,2]
[311014102,1704870643338,-500.0,0.00027397,2]
[311014103,1704870643347,-590.17,0.00027397,2]
[311014104,1704870643356,-500.0,0.00027397,2]
[311014105,1704870643366,-500.0,0.00027397,2]
[311014106,1704870643375,-2008.42,0.00027397,2]
[311014107,1704870643384,-500.99470575,0.00027397,2]
[311014108,1704870643393,-8737.68,0.00027397,2]
[311014109,1704870643402,-500.0,0.00027397,2]
[311014110,1704870643411,-500.0,0.00027397,2]
[311014111,1704870643420,-500.0,0.00027397,2]
[311014112,1704870643430,-1202.09,0.00027397,2]
[311014113,1704870643440,-501.62766761,0.00027397,2]
[311014115,1704870643450,-500.0,0.00027397,2]
[311014117,1704870643459,-6004.55,0.00027397,2]
[311014119,1704870643469,-503.41150605,0.00027397,2]
[311014121,1704870643478,-500.0,0.00027397,2]
[311014123,1704870643488,-500.0,0.00027397,2]
[311014125,1704870643497,-500.0,0.00027397,2]
[311014127,1704870643506,-500.0,0.00027397,2]
[311014129,1704870643515,-500.0,0.00027397,2]
[311014131,1704870643525,-3708.63,0.00027397,2]
[311014133,1704870643534,-500.0,0.00027397,2]
[311014135,1704870643543,-8079.74,0.00027397,2]
[311014137,1704870643554,-502.80033517,0.00027397,2]
[311014139,1704870643563,-501.93651497,0.00027397,2]
[311014141,1704870643574,-500.0,0.00027397,2]
[311014143,1704870643583,-699.28,0.00027397,2]
[311014144,1704870643592,-500.0,0.00027397,2]
[311014147,1704870643601,-500.0,0.00027397,2]
[311014150,1704870643610,-500.0,0.00027397,2]
[311014153,1704870643619,-500.0,0.00027397,2]
[311014156,1704870643629,-500.0,0.00027397,2]
[311014158,1704870643638,-500.0,0.00027397,2]
[311014161,1704870643648,-504.43357066,0.00027397,2]
[311014164,1704870643658,-47001.08,0.00027397,2]
[311014167,1704870643667,-500.0,0.00027397,2]
[311014170,1704870643677,-500.0,0.00027397,2]
[311014173,1704870643687,-5754.88,0.00027397,2]
[311014176,1704870643697,-500.0,0.00027397,2]
[311014179,1704870643706,-500.0,0.00027397,2]
[311014182,1704870643715,-500.0,0.00027397,2]
[311014185,1704870643724,-500.70351278,0.00027397,2]
[311014188,1704870643734,-500.0,0.00027397,2]
[311014191,1704870643743,-843.44,0.00027397,2]
[311014193,1704870643755,-1310.86,0.00027397,2]
[311014195,1704870643764,-1990.48,0.00027397,2]
[311014197,1704870643774,-519.03132997,0.00027397,2]
[311014199,1704870643783,-539.49,0.00027397,2]
[311014201,1704870643792,-680.59,0.00027397,2]
[311014203,1704870643803,-506.84,0.00027397,2]
[311014205,1704870643812,-501.46967249,0.00027397,2]
[311014207,1704870643824,-1025.76,0.00027397,2]
[311014209,1704870643833,-500.0,0.00027397,2]
[311014211,1704870643842,-501.48944674,0.00027397,2]
[311014213,1704870643852,-500.0,0.00027397,2]
[311014215,1704870643861,-500.0,0.00027397,2]
[311014217,1704870643871,-1756.03,0.00027397,2]
[311014219,1704870643881,-500.0,0.00027397,2]
[311014221,1704870643890,-505.0037566,0.00027397,2]
[311014223,1704870643899,-500.0,0.00027397,2]
[311014225,1704870643909,-500.0,0.00027397,5]
[311014227,1704870643919,-500.0,0.00027397,2]
[311014229,1704870643929,-502.47780367,0.00027397,2]
[311014231,1704870643938,-508.95269542,0.00027397,2]
[311014233,1704870643947,-502.97512192,0.00027397,2]
[311014235,1704870643959,-500.0,0.00027397,2]
[311014237,1704870643971,-294.44703932,0.00027397,2]
[311014239,1704870643980,-500.0,0.00027397,2]
[311014241,1704870643990,-500.82557575,0.00027397,2]
[311014243,1704870644000,-231.27172654,0.00027397,2]
[311014245,1704870644009,-500.0,0.00027397,2]
[311014247,1704870644020,-500.0,0.00027397,2]
[311014249,1704870644030,-501.34716716,0.00027397,2]
[311014251,1704870644040,-501.60375425,0.00027397,2]
[311014253,1704870644049,-504.15046231,0.00027397,2]
[311014255,1704870644060,-500.0,0.00027397,2]
[311014257,1704870644072,-500.0,0.00027397,2]
[311014259,1704870644081,-501.04927739,0.00027397,2]
[311014261,1704870644091,-1481.07,0.00027397,2]
[311014263,1704870644100,-516.26,0.00027397,2]
[311014265,1704870644109,-500.0,0.00027397,2]
[311014267,1704870644119,-500.0,0.00027397,2]
[311014269,1704870644129,-500.61378219,0.00027397,2]
[311014271,1704870644138,-500.0,0.00027397,2]
[311014273,1704870644148,-501.21999366,0.00027397,2]
[311014275,1704870644158,-500.0,0.00027397,2]
[311014277,1704870644168,-500.0,0.00027397,2]
[311014279,1704870644179,-1998.94,0.00027397,2]
[311014281,1704870644188,-500.0,0.00027397,2]
[311014283,1704870644202,-500.0,0.00027397,2]
[311014286,1704870644217,-938.82,0.00027397,2]
[311014288,1704870644231,-4654.53,0.00027397,2]
[311014291,1704870644243,-2628.34,0.00027397,2]
[311014293,1704870644255,-500.0,0.00027397,2]
[311014295,1704870644270,-501.18202632,0.00027397,2]
[311014297,1704870644283,-501.78053641,0.00027397,2]
[311014300,1704870644297,-500.0,0.00027397,2]
[311014302,1704870644310,-500.0,0.00027397,2]
[311014304,1704870644329,-503.49423838,0.00027397,2]
[311014307,1704870644341,-500.77930553,0.00027397,2]
[311014309,1704870644352,-501.1581429,0.00027397,2]
[311014311,1704870644366,-500.0,0.00027397,2]
[311014313,1704870644379,-1000.0,0.00027397,2]
[311014316,1704870644392,-846.29,0.00027397,2]
[311014318,1704870644406,-500.84985362,0.00027397,2]
[311014320,1704870644419,-1366.05,0.00027397,2]
[311014322,1704870644429,-500.0,0.00027397,2]
[311014325,1704870644440,-500.0,0.00027397,2]
[311014327,1704870644455,-500.0,0.00027397,2]
[311014329,1704870644468,-500.0,0.00027397,2]
[311014332,1704870644481,-500.0,0.00027397,2]
[311014334,1704870644492,-500.0,0.00027397,2]
[311014337,1704870644505,-500.0,0.00027397,2]
[311014339,1704870644517,-500.0,0.00027397,2]
[311014341,1704870644530,-500.0,0.00027397,2]
[311014344,1704870644545,-500.0,0.00027397,2]
[311014346,1704870644559,-500.0,0.00027397,2]
[311014348,1704870644573,-500.0,0.00027397,2]
[311014351,1704870644586,-500.0,0.00027397,2]
[311014353,1704870644598,-500.0,0.00027397,2]
[311014355,1704870644608,-500.0,0.00027397,2]
[311014357,1704870644618,-501.33305653,0.00027397,2]
[311014359,1704870644630,-500.0,0.00027397,2]
[311014362,1704870644642,-500.0,0.00027397,2]
[311014364,1704870644654,-253.12364064,0.00027397,2]
[311014366,1704870644668,-500.0,0.00027397,2]
[311014368,1704870644680,-723.09,0.00027397,2]
[311014370,1704870644691,-503.00030109,0.00027397,2]
[311014372,1704870644701,-2856.77,0.00027397,2]
[311014375,1704870644712,-500.0,0.00027397,2]
[311014377,1704870644723,-501.8170574,0.00027397,2]
[311014379,1704870644735,-500.78905607,0.00027397,2]
[311014381,1704870644746,-500.0,0.00027397,2]
[311014383,1704870644757,-3809.8,0.00027397,2]
[311014385,1704870644771,-500.0,0.00027397,2]
[311014388,1704870644783,-500.0,0.00027397,2]
[311014390,1704870644795,-502.65996338,0.00027397,2]
[311014392,1704870644807,-522.09370799,0.00027397,2]
[311014394,1704870644818,-500.0,0.00027397,2]
[311014396,1704870644830,-502.37533265,0.00027397,2]
[311014398,1704870644841,-563.91,0.00027397,2]
[311014400,1704870644852,-500.0,0.00027397,2]
[311014402,1704870644864,-502.72683891,0.00027397,2]
[311014403,1704870644875,-160.45613914,0.00027397,10]
[311014404,1704870644886,-160.70613671,0.00027397,10]
[311014405,1704870644897,-225.469193,0.00027397,10]
[311014406,1704870644908,-620.00002264,0.00027443,2]
[311014407,1704870644920,-33088.3863492,0.000275,2]
[311014408,1704870644932,-563.91,0.00027534,2]
[311014409,1704870644943,-500.0,0.00027671,2]
[311014410,1704870644954,-550.98543534,0.00027671,2]
[311014411,1704870644965,-500.0,0.00027671,2]
[311014412,1704870644976,-500.0,0.00027671,2]
[311014413,1704870644987,-500.0,0.00027671,2]
[311014414,1704870644998,-500.0,0.00027671,2]
[311014415,1704870645009,-500.0,0.00027671,2]
[311014416,1704870645020,-500.0,0.00027671,2]
[311014417,1704870645031,-640.87,0.00027671,2]
[311014418,1704870645042,-597.17,0.00027671,2]
[311014419,1704870645053,-500.0,0.00027671,2]
[311014420,1704870645063,-371.68318389,0.00027671,2]
[311014421,1704870645076,-471.57877713,0.00027671,2]
[311014422,1704870645086,-501.00160145,0.00027671,2]
[311014423,1704870645097,-502.0155958,0.00027671,2]
[311014424,1704870645109,-197.20355951,0.00027671,2]
[311014425,1704870645119,-607.21,0.00027671,2]
[311014426,1704870645130,-504.0857048,0.00027671,2]
[311014427,1704870645142,-503.99026143,0.00027671,2]
[311014428,1704870645152,-500.0,0.00027671,2]
[311014429,1704870645163,-500.0,0.00027671,2]
[311014430,1704870645174,-500.0,0.00027671,2]
[311014431,1704870645185,-500.0,0.00027671,2]
[311014432,1704870645196,-500.0,0.00027671,2]
[311014433,1704870645208,-500.0,0.00027671,2]
[311014435,1704870645219,-500.0,0.00027671,2]
[311014436,1704870645231,-555.76,0.00027671,2]
[311014437,1704870645241,-502.36265824,0.00027671,2]
[311014439,1704870645252,-504.9094626,0.00027671,2]
[311014441,1704870645263,-500.0,0.00027671,2]
[311014443,1704870645275,-500.0,0.00027671,2]
[311014446,1704870645286,-500.0,0.00027671,2]
[311014448,1704870645297,-515.0953029,0.00027671,2]
[311014450,1704870645308,-500.0,0.00027671,2]
[311014452,1704870645322,-1000.0,0.00027671,4]
[311014455,1704870645333,-812.78,0.00027671,2]
[311014457,1704870645344,-500.0,0.00027671,2]
[311014459,1704870645355,-503.41155253,0.00027671,2]
[311014475,1704870645364,-500.0,0.00027671,2]
[311014479,1704870645518,-500.0,0.00027671,2]
[311014481,1704870645528,-500.0,0.00027671,2]
[311014482,1704870645537,-500.0,0.00027671,2]
[311014484,1704870645547,-500.0,0.00027671,2]
[311014486,1704870645556,-500.0,0.00027671,2]
[311014488,1704870645567,-500.0,0.00027671,2]
[311014491,1704870645576,-513.86339922,0.00027671,2]
[311014493,1704870645586,-200.88833402,0.00027671,2]
[311014495,1704870645595,-1435.89,0.00027671,2]
[311014496,1704870645604,-500.0,0.00027671,2]
[311014498,1704870645614,-500.0,0.00027671,2]
[311014500,1704870645623,-500.0,0.00027671,2]
[311014502,1704870645632,-500.0,0.00027671,2]
[311014504,1704870645641,-500.0,0.00027671,2]
[311014506,1704870645650,-500.0,0.00027671,2]
[311014508,1704870645659,-574.30667517,0.00027671,2]
[311014510,1704870645668,-500.0,0.00027671,2]
[311014512,1704870645678,-500.0,0.00027671,2]
[311014514,1704870645688,-501.36333868,0.00027671,2]
[311014516,1704870645697,-516.03177833,0.00027671,2]
[311014518,1704870645706,-500.0,0.00027671,2]
[311014520,1704870645715,-722.78,0.00027671,2]
[311014522,1704870645725,-500.0,0.00027671,2]
[311014524,1704870645733,-500.0,0.00027671,2]
[311014526,1704870645742,-522.27,0.00027671,2]
[311014528,1704870645751,-500.0,0.00027671,2]
[311014530,1704870645760,-1700.86,0.00027671,2]
[311014532,1704870645769,-500.0,0.00027671,2]
[311014534,1704870645780,-500.98,0.00027671,2]
[311014536,1704870645789,-500.0,0.00027671,2]
[311014538,1704870645798,-500.0,0.00027671,2]
[311014540,1704870645807,-500.0,0.00027671,2]
[311014542,1704870645817,-505.78714595,0.00027671,2]
[311014544,1704870645826,-500.0,0.00027671,2]
[311014546,1704870645834,-500.0,0.00027671,2]
[311014548,1704870645844,-1728.88,0.00027671,2]
[311014550,1704870645853,-503.66651068,0.00027671,2]
[311014552,1704870645862,-500.0,0.00027671,2]
[311014554,1704870645871,-500.0,0.00027671,2]
[311014556,1704870645880,-504.41726563,0.00027671,2]
[311014558,1704870645889,-500.0,0.00027671,2]
[311014560,1704870645898,-500.0,0.00027671,2]
[311014562,1704870645907,-502.48980308,0.00027671,2]
[311014564,1704870645916,-500.0,0.00027671,2]
[311014566,1704870645925,-307.60449464,0.00027671,2]
[311014568,1704870645933,-519.8,0.00027671,2]
[311014570,1704870645942,-196.90125182,0.00027671,5]
[311014572,1704870645951,-500.0,0.00027671,2]
[311014574,1704870645960,-500.0,0.00027671,2]
[311014575,1704870645969,-500.0,0.00027671,2]
[311014577,1704870645979,-500.0,0.00027671,2]
[311014579,1704870645988,-501.3942959,0.00027671,2]
[311014581,1704870646002,-500.0,0.00027671,2]
[311014584,1704870646011,-500.0,0.00027671,2]
[311014585,1704870646021,-500.0,0.00027671,2]
[311014587,1704870646030,-500.0,0.00027671,2]
[311014589,1704870646039,-500.0,0.00027671,2]
[311014591,1704870646048,-500.0,0.00027671,2]
[311014593,1704870646057,-500.0,0.00027671,2]
[311014595,1704870646068,-500.0,0.00027671,2]
[311014597,1704870646078,-500.0,0.00027671,2]
[311014599,1704870646087,-500.0,0.00027671,2]
[311014601,1704870646097,-564.33525738,0.00027671,2]
[311014603,1704870646106,-500.0,0.00027671,2]
[311014605,1704870646115,-500.0,0.00027671,2]
[311014607,1704870646124,-501.69216036,0.00027671,2]
[311014609,1704870646133,-1471.95,0.00027671,2]
[311014611,1704870646141,-500.0,0.00027671,2]
[311014613,1704870646151,-500.0,0.00027671,2]
[311014615,1704870646160,-500.0,0.00027671,2]
[311014617,1704870646169,-600.0,0.00027671,2]
[311014620,1704870646178,-500.0,0.00027671,2]
[311014622,1704870646187,-500.0,0.00027671,2]
[311014624,1704870646196,-500.0,0.00027671,2]
[311014626,1704870646206,-2159.22,0.00027671,2]
[311014628,1704870646215,-500.0,0.00027671,2]
[311014630,1704870646225,-523.61,0.00027671,2]
[311014632,1704870646234,-500.0,0.00027671,2]
[311014634,1704870646243,-500.0,0.00027671,2]
[311014636,1704870646252,-165.36565225,0.00027671,2]
[311014638,1704870646261,-1893.13,0.00027671,2]
[311014640,1704870646271,-500.0,0.00027671,2]
[311014642,1704870646280,-1733.57,0.00027671,2]
[311014644,1704870646290,-421.98401203,0.00027671,2]
[311014646,1704870646300,-3709.22,0.00027671,2]
[311014648,1704870646310,-501.38033797,0.00027671,2]
[311014650,1704870646326,-500.0,0.00027671,2]
[311014652,1704870646337,-500.0,0.00027671,2]
[311014654,1704870646347,-207.70129243,0.00027671,2]
[311014656,1704870646357,-503.95177323,0.00027671,2]
[311014658,1704870646368,-500.0,0.00027671,2]
[311014660,1704870646378,-500.0,0.00027671,2]
[311014662,1704870646393,-1533.18,0.00027671,2]
[311014664,1704870646403,-500.0,0.00027671,2]
[311014666,1704870646413,-500.0,0.00027671,2]
[311014668,1704870646422,-500.0,0.00027671,2]
[311014670,1704870646432,-590.17,0.00027671,2]
[311014672,1704870646442,-500.0,0.00027671,2]
[311014674,1704870646451,-500.0,0.00027671,2]
[311014676,1704870646460,-2008.42,0.00027671,2]
[311014678,1704870646470,-8737.68,0.00027671,2]
[311014680,1704870646479,-500.0,0.00027671,2]
[311014682,1704870646488,-500.0,0.00027671,2]
[311014684,1704870646497,-500.0,0.00027671,2]
[311014686,1704870646506,-1202.09,0.00027671,2]
[311014688,1704870646515,-500.0,0.00027671,2]
[311014690,1704870646525,-6004.55,0.00027671,2]
[311014692,1704870646534,-500.0,0.00027671,2]
[311014694,1704870646544,-500.0,0.00027671,2]
[311014696,1704870646553,-504.60900011,0.00027671,2]
[311014698,1704870646562,-500.0,0.00027671,2]
[311014700,1704870646574,-500.0,0.00027671,2]
[311014702,1704870646583,-3708.63,0.00027671,2]
[311014704,1704870646593,-500.0,0.00027671,2]
[311014706,1704870646603,-8079.74,0.00027671,2]
[311014708,1704870646612,-500.0,0.00027671,2]
[311014710,1704870646622,-699.28,0.00027671,2]
[311014712,1704870646630,-500.0,0.00027671,2]
[311014714,1704870646639,-504.09011111,0.00027671,2]
[311014716,1704870646648,-500.0,0.00027671,2]
[311014718,1704870646657,-500.0,0.00027671,2]
[311014720,1704870646665,-500.0,0.00027671,2]
[311014722,1704870646674,-500.0,0.00027671,2]
[311014724,1704870646684,-47001.08,0.00027671,2]
[311014726,1704870646694,-5754.88,0.00027671,2]
[311014728,1704870646703,-500.0,0.00027671,2]
[311014730,1704870646711,-500.0,0.00027671,2]
[311014732,1704870646721,-500.0,0.00027671,2]
[311014734,1704870646730,-500.0,0.00027671,2]
[311014736,1704870646739,-500.0,0.00027671,2]
[311014738,1704870646747,-843.44,0.00027671,2]
[311014740,1704870646757,-1310.86,0.00027671,2]
[311014742,1704870646766,-1990.48,0.00027671,2]
[311014744,1704870646775,-539.49,0.00027671,2]
[311014745,1704870646783,-680.59,0.00027671,2]
[311014748,1704870646793,-506.84,0.00027671,2]
[311014749,1704870646803,-1025.76,0.00027671,2]
[311014751,1704870646813,-500.0,0.00027671,2]
[311014753,1704870646823,-500.0,0.00027671,2]
[311014755,1704870646832,-1756.03,0.00027671,2]
[311014757,1704870646840,-500.0,0.00027671,2]
[311014759,1704870646849,-501.07799882,0.00027671,2]
[311014761,1704870646859,-500.0,0.00027671,2]
[311014763,1704870646868,-500.0,0.00027671,5]
[311014765,1704870646877,-500.0,0.00027671,2]
[311014767,1704870646886,-500.0,0.00027671,2]
[311014769,1704870646895,-511.12548671,0.00027671,2]
[311014771,1704870646904,-500.0,0.00027671,2]
[311014773,1704870646913,-500.0,0.00027671,2]
[311014775,1704870646922,-500.0,0.00027671,2]
[311014777,1704870646932,-500.0,0.00027671,2]
[311014779,1704870646941,-1481.07,0.00027671,2]
[311014781,1704870646952,-516.26,0.00027671,2]
[311014783,1704870646962,-265.0895561,0.00027671,2]
[311014785,1704870646971,-613.7161458,0.00027671,2]
[311014787,1704870646980,-500.0,0.00027671,2]
[311014789,1704870646989,-502.52673231,0.00027671,2]
[311014791,1704870646998,-1998.94,0.00027671,2]
[311014793,1704870647007,-500.0,0.00027671,2]
[311014795,1704870647016,-500.0,0.00027671,2]
[311014797,1704870647025,-938.82,0.00027671,2]
[311014799,1704870647034,-4654.53,0.00027671,2]
[311014801,1704870647044,-2628.34,0.00027671,2]
[311014803,1704870647053,-500.0,0.00027671,2]
[311014805,1704870647062,-500.0,0.00027671,2]
[311014807,1704870647073,-501.18917969,0.00027671,2]
[311014809,1704870647082,-501.95116026,0.00027671,2]
[311014811,1704870647091,-1000.0,0.00027671,2]
[311014813,1704870647101,-846.29,0.00027671,2]
[311014815,1704870647110,-1366.05,0.00027671,2]
[311014817,1704870647119,-500.0,0.00027671,2]
[311014819,1704870647128,-500.0,0.00027671,2]
[311014821,1704870647137,-723.09,0.00027671,2]
[311014823,1704870647146,-2856.77,0.00027671,2]
[311014825,1704870647155,-503.4346223,0.00027671,2]
[311014827,1704870647165,-3809.8,0.00027671,2]
[311014829,1704870647173,-500.0,0.00027671,2]
[311014831,1704870647182,-500.0,0.00027671,2]
[311014833,1704870647191,-500.0,0.00027671,2]
[311014835,1704870647200,-500.0,0.00027671,2]
[311014837,1704870647209,-563.91,0.00027671,2]
[311014839,1704870647217,-500.0,0.00027671,2]
[311014841,1704870647226,-10962.11668583,0.00027685,3]
[311014843,1704870647235,-5000.0,0.00027685,5]
[311014845,1704870647245,-5000.0,0.00027685,5]
[311014847,1704870647253,-5000.0,0.00027685,5]
[311014849,1704870647262,-3090.44640703,0.00027685,3]
[311014851,1704870647271,-5000.0,0.00027685,5]
[311014853,1704870647280,-5000.0,0.00027685,5]
[311014855,1704870647288,-5000.0,0.00027685,5]
[311014857,1704870647298,-5000.0,0.00027685,5]
[311014858,1704870647307,-5000.0,0.00027685,5]
[311014861,1704870647322,-5000.0,0.00027685,5]
[311014863,1704870647340,-5000.0,0.00027685,5]
[311014864,1704870647350,-5000.0,0.00027685,5]
[311014867,1704870647359,-2161.49305546,0.00027685,3]
[311014869,1704870647368,-5000.0,0.00027685,5]
[311014871,1704870647378,-5000.0,0.00027685,5]
[311014872,1704870647387,-5000.0,0.00027685,5]
[311014874,1704870647396,-5000.0,0.00027685,5]
[311014876,1704870647405,-4761.97231523,0.00027685,3]
[311014879,1704870647415,-5000.0,0.00027685,5]
[311014880,1704870647424,-5000.0,0.00027685,5]
[311014883,1704870647434,-5000.0,0.00027685,5]
[311014885,1704870647444,-5000.0,0.00027685,5]
[311014887,1704870647453,-5000.0,0.00027685,5]
[311014889,1704870647462,-5000.0,0.00027685,5]
[311014891,1704870647471,-11861.02736913,0.00027685,3]
[311014893,1704870647480,-5000.0,0.00027685,5]
[311014895,1704870647490,-5000.0,0.00027685,5]
[311014896,1704870647499,-5000.0,0.00027685,5]
[311014898,1704870647508,-5000.0,0.00027685,5]
[311014900,1704870647517,-5000.0,0.00027685,5]
[311014902,1704870647527,-31866.41915701,0.00027685,3]
[311014904,1704870647536,-7225.17464422,0.00027745,7]
[311014906,1704870647545,-563.91,0.00027808,2]
[311014908,1704870647554,-167.29399207,0.00027842,2]
[311014909,1704870647563,-469.44638511,0.00027842,2]
[311014910,1704870647574,-1988.77445231,0.00027842,2]
[311014911,1704870647583,-246.76310494,0.00027842,2]
[311014912,1704870647592,-500.0,0.00027945,2]
[311014913,1704870647601,-500.0,0.00027945,2]
[311014914,1704870647609,-500.0,0.00027945,2]
[311014915,1704870647617,-500.0,0.00027945,2]
[311014916,1704870647625,-356.33341781,0.00027945,2]
[311014917,1704870647634,-500.0,0.00027945,2]
[311014918,1704870647643,-500.0,0.00027945,2]
[311014920,1704870647652,-640.87,0.00027945,2]
[311014922,1704870647661,-597.17,0.00027945,2]
[311014924,1704870647670,-500.0,0.00027945,2]
[311014926,1704870647679,-607.21,0.00027945,2]
[311014928,1704870647688,-500.0,0.00027945,2]
[311014930,1704870647697,-500.0,0.00027945,2]
[311014932,1704870647706,-500.0,0.00027945,2]
[311014934,1704870647715,-343.54922404,0.00027945,2]
[311014936,1704870647725,-517.23126257,0.00027945,2]
[311014938,1704870647734,-500.0,0.00027945,2]
[311014940,1704870647744,-500.0,0.00027945,2]
[311014942,1704870647753,-555.76,0.00027945,2]
[311014944,1704870647763,-500.0,0.00027945,2]
[311014946,1704870647772,-467.47072547,0.00027945,2]
[311014948,1704870647781,-500.0,0.00027945,2]
[311014950,1704870647790,-500.0,0.00027945,2]
[311014952,1704870647800,-1000.0,0.00027945,4]
[311014954,1704870647809,-812.78,0.00027945,2]
[311014955,1704870647819,-500.0,0.00027945,2]
[311014958,1704870647828,-500.0,0.00027945,2]
[311014959,1704870647838,-500.0,0.00027945,2]
[311014961,1704870647847,-500.0,0.00027945,2]
[311014964,1704870647857,-500.0,0.00027945,2]
[311014965,1704870647867,-500.0,0.00027945,2]
[311014967,1704870647877,-500.0,0.00027945,2]